Workbook

Sheet Popis inventara
K2: Želite li istaknuti stavke za ponovno naručivanje? | L2: Da
B3: Ponovna Narudžba | C3: ID inventara | D3: Naziv | E3: Opis | F3: Jedinična cijena | G3: Količina na zalihama | H3: Vrijednost zaliha | I3: Razina ponovnog naručivanja | J3: Vrijeme ponovnog naručivanja u danima | K3: Količina za ponovno naručivanje | L3: Je li povučeno iz prometa?
B4: =IFERROR((Tablica_Popisa_Inventara[[#This Row],[Količina na zalihama]]<=Tablica_Popisa_Inventara[[#This Row],[Razina ponovnog naručivanja]])*(Tablica_Popisa_Inventara[[#This Row],[Je li povučeno iz prometa?]]="")*IstaknutaVri,0) -> 1 | C4: IN0001 | D4: Stavka 1 | E4: Opis 1 | F4: 51.00 kn | G4: 25 | H4: =Tablica_Popisa_Inventara[[#This Row],[Jedinična cijena]]*Tablica_Popisa_Inventara[[#This Row],[Količina na zalihama]] -> 1,275.00 kn | I4: 29 | J4: 13 | K4: 50
B5: =IFERROR((Tablica_Popisa_Inventara[[#This Row],[Količina na zalihama]]<=Tablica_Popisa_Inventara[[#This Row],[Razina ponovnog naručivanja]])*(Tablica_Popisa_Inventara[[#This Row],[Je li povučeno iz prometa?]]="")*IstaknutaVri,0) -> 1 | C5: IN0002 | D5: Stavka 2 | E5: Opis 2 | F5: 93.00 kn | G5: 132 | H5: =Tablica_Popisa_Inventara[[#This Row],[Jedinična cijena]]*Tablica_Popisa_Inventara[[#This Row],[Količina na zalihama]] -> 12,276.00 kn | I5: 231 | J5: 4 | K5: 50
B6: =IFERROR((Tablica_Popisa_Inventara[[#This Row],[Količina na zalihama]]<=Tablica_Popisa_Inventara[[#This Row],[Razina ponovnog naručivanja]])*(Tablica_Popisa_Inventara[[#This Row],[Je li povučeno iz prometa?]]="")*IstaknutaVri,0) -> 0 | C6: IN0003 | D6: Artikl 3 | E6: Opis 3 | F6: 57.00 kn | G6: 151 | H6: =Tablica_Popisa_Inventara[[#This Row],[Jedinična cijena]]*Tablica_Popisa_Inventara[[#This Row],[Količina na zalihama]] -> 8,607.00 kn | I6: 114 | J6: 11 | K6: 150
B7: =IFERROR((Tablica_Popisa_Inventara[[#This Row],[Količina na zalihama]]<=Tablica_Popisa_Inventara[[#This Row],[Razina ponovnog naručivanja]])*(Tablica_Popisa_Inventara[[#This Row],[Je li povučeno iz prometa?]]="")*IstaknutaVri,0) -> 0 | C7: IN0004 | D7: Artikl 4 | E7: Opis 4 | F7: 19.00 kn | G7: 186 | H7: =Tablica_Popisa_Inventara[[#This Row],[Jedinična cijena]]*Tablica_Popisa_Inventara[[#This Row],[Količina na zalihama]] -> 3,534.00 kn | I7: 158 | J7: 6 | K7: 50
B8: =IFERROR((Tablica_Popisa_Inventara[[#This Row],[Količina na zalihama]]<=Tablica_Popisa_Inventara[[#This Row],[Razina ponovnog naručivanja]])*(Tablica_Popisa_Inventara[[#This Row],[Je li povučeno iz prometa?]]="")*IstaknutaVri,0) -> 0 | C8: IN0005 | D8: Stavka 5 | E8: Opis 5 | F8: 75.00 kn | G8: 62 | H8: =Tablica_Popisa_Inventara[[#This Row],[Jedinična cijena]]*Tablica_Popisa_Inventara[[#This Row],[Količina na zalihama]] -> 4,650.00 kn | I8: 39 | J8: 12 | K8: 50
B9: =IFERROR((Tablica_Popisa_Inventara[[#This Row],[Količina na zalihama]]<=Tablica_Popisa_Inventara[[#This Row],[Razina ponovnog naručivanja]])*(Tablica_Popisa_Inventara[[#This Row],[Je li povučeno iz prometa?]]="")*IstaknutaVri,0) -> 1 | C9: IN0006 | D9: Stavka 6 | E9: Opis 6 | F9: 11.00 kn | G9: 5 | H9: =Tablica_Popisa_Inventara[[#This Row],[Jedinična cijena]]*Tablica_Popisa_Inventara[[#This Row],[Količina na zalihama]] -> 55.00 kn | I9: 9 | J9: 13 | K9: 150
B10: =IFERROR((Tablica_Popisa_Inventara[[#This Row],[Količina na zalihama]]<=Tablica_Popisa_Inventara[[#This Row],[Razina ponovnog naručivanja]])*(Tablica_Popisa_Inventara[[#This Row],[Je li povučeno iz prometa?]]="")*IstaknutaVri,0) -> 0 | C10: IN0007 | D10: Stavka 7 | E10: Opis 7 | F10: 56.00 kn | G10: 58 | H10: =Tablica_Popisa_Inventara[[#This Row],[Jedinična cijena]]*Tablica_Popisa_Inventara[[#This Row],[Količina na zalihama]] -> 3,248.00 kn | I10: 109 | J10: 7 | K10: 100 | L10: Da
B11: =IFERROR((Tablica_Popisa_Inventara[[#This Row],[Količina na zalihama]]<=Tablica_Popisa_Inventara[[#This Row],[Razina ponovnog naručivanja]])*(Tablica_Popisa_Inventara[[#This Row],[Je li povučeno iz prometa?]]="")*IstaknutaVri,0) -> 1 | C11: IN0008 | D11: Stavka 8 | E11: Opis 8 | F11: 38.00 kn | G11: 101 | H11: =Tablica_Popisa_Inventara[[#This Row],[Jedinična cijena]]*Tablica_Popisa_Inventara[[#This Row],[Količina na zalihama]] -> 3,838.00 kn | I11: 162 | J11: 3 | K11: 100
B12: =IFERROR((Tablica_Popisa_Inventara[[#This Row],[Količina na zalihama]]<=Tablica_Popisa_Inventara[[#This Row],[Razina ponovnog naručivanja]])*(Tablica_Popisa_Inventara[[#This Row],[Je li povučeno iz prometa?]]="")*IstaknutaVri,0) -> 0 | C12: IN0009 | D12: Stavka 9 | E12: Opis 9 | F12: 59.00 kn | G12: 122 | H12: =Tablica_Popisa_Inventara[[#This Row],[Jedinična cijena]]*Tablica_Popisa_Inventara[[#This Row],[Količina na zalihama]] -> 7,198.00 kn | I12: 82 | J12: 3 | K12: 150
B13: =IFERROR((Tablica_Popisa_Inventara[[#This Row],[Količina na zalihama]]<=Tablica_Popisa_Inventara[[#This Row],[Razina ponovnog naručivanja]])*(Tablica_Popisa_Inventara[[#This Row],[Je li povučeno iz prometa?]]="")*IstaknutaVri,0) -> 1 | C13: IN0010 | D13: Stavka 10 | E13: Opis 10 | F13: 50.00 kn | G13: 175 | H13: =Tablica_Popisa_Inventara[[#This Row],[Jedinična cijena]]*Tablica_Popisa_Inventara[[#This Row],[Količina na zalihama]] -> 8,750.00 kn | I13: 283 | J13: 8 | K13: 150
B14: =IFERROR((Tablica_Popisa_Inventara[[#This Row],[Količina na zalihama]]<=Tablica_Popisa_Inventara[[#This Row],[Razina ponovnog naručivanja]])*(Tablica_Popisa_Inventara[[#This Row],[Je li povučeno iz prometa?]]="")*IstaknutaVri,0) -> 1 | C14: IN0011 | D14: Stavka 11 | E14: Opis 11 | F14: 59.00 kn | G14: 176 | H14: =Tablica_Popisa_Inventara[[#This Row],[Jedinična cijena]]*Tablica_Popisa_Inventara[[#This Row],[Količina na zalihama]] -> 10,384.00 kn | I14: 229 | J14: 1 | K14: 100
B15: =IFERROR((Tablica_Popisa_Inventara[[#This Row],[Količina na zalihama]]<=Tablica_Popisa_Inventara[[#This Row],[Razina ponovnog naručivanja]])*(Tablica_Popisa_Inventara[[#This Row],[Je li povučeno iz prometa?]]="")*IstaknutaVri,0) -> 1 | C15: IN0012 | D15: Stavka 12 | E15: Opis 12 | F15: 18.00 kn | G15: 22 | H15: =Tablica_Popisa_Inventara[[#This Row],[Jedinična cijena]]*Tablica_Popisa_Inventara[[#This Row],[Količina na zalihama]] -> 396.00 kn | I15: 36 | J15: 12 | K15: 50
B16: =IFERROR((Tablica_Popisa_Inventara[[#This Row],[Količina na zalihama]]<=Tablica_Popisa_Inventara[[#This Row],[Razina ponovnog naručivanja]])*(Tablica_Popisa_Inventara[[#This Row],[Je li povučeno iz prometa?]]="")*IstaknutaVri,0) -> 1 | C16: IN0013 | D16: Stavka 13 | E16: Opis 13 | F16: 26.00 kn | G16: 72 | H16: =Tablica_Popisa_Inventara[[#This Row],[Jedinična cijena]]*Tablica_Popisa_Inventara[[#This Row],[Količina na zalihama]] -> 1,872.00 kn | I16: 102 | J16: 9 | K16: 100
B17: =IFERROR((Tablica_Popisa_Inventara[[#This Row],[Količina na zalihama]]<=Tablica_Popisa_Inventara[[#This Row],[Razina ponovnog naručivanja]])*(Tablica_Popisa_Inventara[[#This Row],[Je li povučeno iz prometa?]]="")*IstaknutaVri,0) -> 1 | C17: IN0014 | D17: Stavka 14 | E17: Opis 14 | F17: 42.00 kn | G17: 62 | H17: =Tablica_Popisa_Inventara[[#This Row],[Jedinična cijena]]*Tablica_Popisa_Inventara[[#This Row],[Količina na zalihama]] -> 2,604.00 kn | I17: 83 | J17: 2 | K17: 100
B18: =IFERROR((Tablica_Popisa_Inventara[[#This Row],[Količina na zalihama]]<=Tablica_Popisa_Inventara[[#This Row],[Razina ponovnog naručivanja]])*(Tablica_Popisa_Inventara[[#This Row],[Je li povučeno iz prometa?]]="")*IstaknutaVri,0) -> 0 | C18: IN0015 | D18: Stavka 15 | E18: Opis 15 | F18: 32.00 kn | G18: 46 | H18: =Tablica_Popisa_Inventara[[#This Row],[Jedinična cijena]]*Tablica_Popisa_Inventara[[#This Row],[Količina na zalihama]] -> 1,472.00 kn | I18: 23 | J18: 15 | K18: 50
B19: =IFERROR((Tablica_Popisa_Inventara[[#This Row],[Količina na zalihama]]<=Tablica_Popisa_Inventara[[#This Row],[Razina ponovnog naručivanja]])*(Tablica_Popisa_Inventara[[#This Row],[Je li povučeno iz prometa?]]="")*IstaknutaVri,0) -> 1 | C19: IN0016 | D19: Stavka 16 | E19: Opis 16 | F19: 90.00 kn | G19: 96 | H19: =Tablica_Popisa_Inventara[[#This Row],[Jedinična cijena]]*Tablica_Popisa_Inventara[[#This Row],[Količina na zalihama]] -> 8,640.00 kn | I19: 180 | J19: 3 | K19: 50
B20: =IFERROR((Tablica_Popisa_Inventara[[#This Row],[Količina na zalihama]]<=Tablica_Popisa_Inventara[[#This Row],[Razina ponovnog naručivanja]])*(Tablica_Popisa_Inventara[[#This Row],[Je li povučeno iz prometa?]]="")*IstaknutaVri,0) -> 0 | C20: IN0017 | D20: Stavka 17 | E20: Opis 17 | F20: 97.00 kn | G20: 57 | H20: =Tablica_Popisa_Inventara[[#This Row],[Jedinična cijena]]*Tablica_Popisa_Inventara[[#This Row],[Količina na zalihama]] -> 5,529.00 kn | I20: 98 | J20: 12 | K20: 50 | L20: Da
B21: =IFERROR((Tablica_Popisa_Inventara[[#This Row],[Količina na zalihama]]<=Tablica_Popisa_Inventara[[#This Row],[Razina ponovnog naručivanja]])*(Tablica_Popisa_Inventara[[#This Row],[Je li povučeno iz prometa?]]="")*IstaknutaVri,0) -> 1 | C21: IN0018 | D21: Stavka 18 | E21: Opis 18 | F21: 12.00 kn | G21: 6 | H21: =Tablica_Popisa_Inventara[[#This Row],[Jedinična cijena]]*Tablica_Popisa_Inventara[[#This Row],[Količina na zalihama]] -> 72.00 kn | I21: 7 | J21: 13 | K21: 50
B22: =IFERROR((Tablica_Popisa_Inventara[[#This Row],[Količina na zalihama]]<=Tablica_Popisa_Inventara[[#This Row],[Razina ponovnog naručivanja]])*(Tablica_Popisa_Inventara[[#This Row],[Je li povučeno iz prometa?]]="")*IstaknutaVri,0) -> 1 | C22: IN0019 | D22: Stavka 19 | E22: Opis 19 | F22: 82.00 kn | G22: 143 | H22: =Tablica_Popisa_Inventara[[#This Row],[Jedinična cijena]]*Tablica_Popisa_Inventara[[#This Row],[Količina na zalihama]] -> 11,726.00 kn | I22: 164 | J22: 12 | K22: 150
B23: =IFERROR((Tablica_Popisa_Inventara[[#This Row],[Količina na zalihama]]<=Tablica_Popisa_Inventara[[#This Row],[Razina ponovnog naručivanja]])*(Tablica_Popisa_Inventara[[#This Row],[Je li povučeno iz prometa?]]="")*IstaknutaVri,0) -> 0 | C23: IN0020 | D23: Stavka 20 | E23: Opis 20 | F23: 16.00 kn | G23: 124 | H23: =Tablica_Popisa_Inventara[[#This Row],[Jedinična cijena]]*Tablica_Popisa_Inventara[[#This Row],[Količina na zalihama]] -> 1,984.00 kn | I23: 113 | J23: 14 | K23: 50
B24: =IFERROR((Tablica_Popisa_Inventara[[#This Row],[Količina na zalihama]]<=Tablica_Popisa_Inventara[[#This Row],[Razina ponovnog naručivanja]])*(Tablica_Popisa_Inventara[[#This Row],[Je li povučeno iz prometa?]]="")*IstaknutaVri,0) -> 0 | C24: IN0021 | D24: Stavka 21 | E24: Opis 21 | F24: 19.00 kn | G24: 112 | H24: =Tablica_Popisa_Inventara[[#This Row],[Jedinična cijena]]*Tablica_Popisa_Inventara[[#This Row],[Količina na zalihama]] -> 2,128.00 kn | I24: 75 | J24: 11 | K24: 50
B25: =IFERROR((Tablica_Popisa_Inventara[[#This Row],[Količina na zalihama]]<=Tablica_Popisa_Inventara[[#This Row],[Razina ponovnog naručivanja]])*(Tablica_Popisa_Inventara[[#This Row],[Je li povučeno iz prometa?]]="")*IstaknutaVri,0) -> 0 | C25: IN0022 | D25: Stavka 22 | E25: Opis 22 | F25: 24.00 kn | G25: 182 | H25: =Tablica_Popisa_Inventara[[#This Row],[Jedinična cijena]]*Tablica_Popisa_Inventara[[#This Row],[Količina na zalihama]] -> 4,368.00 kn | I25: 132 | J25: 15 | K25: 150
B26: =IFERROR((Tablica_Popisa_Inventara[[#This Row],[Količina na zalihama]]<=Tablica_Popisa_Inventara[[#This Row],[Razina ponovnog naručivanja]])*(Tablica_Popisa_Inventara[[#This Row],[Je li povučeno iz prometa?]]="")*IstaknutaVri,0) -> 0 | C26: IN0023 | D26: Stavka 23 | E26: Opis 23 | F26: 29.00 kn | G26: 106 | H26: =Tablica_Popisa_Inventara[[#This Row],[Jedinična cijena]]*Tablica_Popisa_Inventara[[#This Row],[Količina na zalihama]] -> 3,074.00 kn | I26: 142 | J26: 1 | K26: 150 | L26: Da
B27: =IFERROR((Tablica_Popisa_Inventara[[#This Row],[Količina na zalihama]]<=Tablica_Popisa_Inventara[[#This Row],[Razina ponovnog naručivanja]])*(Tablica_Popisa_Inventara[[#This Row],[Je li povučeno iz prometa?]]="")*IstaknutaVri,0) -> 0 | C27: IN0024 | D27: Stavka 24 | E27: Opis 24 | F27: 75.00 kn | G27: 173 | H27: =Tablica_Popisa_Inventara[[#This Row],[Jedinična cijena]]*Tablica_Popisa_Inventara[[#This Row],[Količina na zalihama]] -> 12,975.00 kn | I27: 127 | J27: 9 | K27: 100
B28: =IFERROR((Tablica_Popisa_Inventara[[#This Row],[Količina na zalihama]]<=Tablica_Popisa_Inventara[[#This Row],[Razina ponovnog naručivanja]])*(Tablica_Popisa_Inventara[[#This Row],[Je li povučeno iz prometa?]]="")*IstaknutaVri,0) -> 0 | C28: IN0025 | D28: Stavka 25 | E28: Opis 25 | F28: 14.00 kn | G28: 28 | H28: =Tablica_Popisa_Inventara[[#This Row],[Jedinična cijena]]*Tablica_Popisa_Inventara[[#This Row],[Količina na zalihama]] -> 392.00 kn | I28: 21 | J28: 8 | K28: 50
